bitfinex-derivatives/quotes_SOLF0:USTF0_20250428
["timestamp","ask_amount","ask_price","bid_price","bid_amount"]
[1745881597872,6.7534,148.04,148.01,6.7543]
[1745881598171,9.35153508,148.06,147.98,34.23153508]
[1745881598974,9.35153508,148.06,148.0,6.7548]
[1745881598975,6.7537,148.03,148.0,6.7548]
[1745881599174,9.35153508,148.06,147.98,34.23153508]
[1745881599478,6.7529,148.05,148.01,6.7546]
[1745881599772,13.40643508,148.08,148.01,6.7546]
[1745881601078,13.40643508,148.08,147.98,34.23153508]
[1745881601268,9.35153508,148.06,147.98,34.23153508]
[1745881601575,6.754,148.03,147.99,6.755]
[1745881602275,6.7542,148.02,147.99,6.755]
[1745881602476,9.35153508,148.02,147.95,24.86]
[1745881602669,24.86,148.01,147.95,24.86]
[1745881602872,6.756,147.98,147.95,24.86]
[1745881603166,9.35153508,148.0,147.92,34.21153508]
[1745881603567,6.7568,147.97,147.92,34.21153508]
[1745881603766,6.7568,147.97,147.94,6.7575]
[1745881605074,6.7561,147.98,147.95,6.7572]
[1745881606478,6.7564,147.97,147.94,6.7575]
[1745881606875,9.35153508,148.0,147.92,24.86]
[1745881607076,6.7562,147.98,147.94,6.7576]
[1745881607676,9.35153508,148.0,147.94,6.7576]
[1745881608380,6.7563,147.98,147.95,6.7573]
[1745881610583,9.35153508,148.0,147.96,6.7566]
[1745881611877,3.9175,148.03,147.94,9.35153508]
[1745881612081,3.9175,148.03,147.96,34.21153508]
[1745881612375,10.6714,148.03,147.99,6.7552]
[1745881612573,24.86,148.05,147.96,34.21153508]
[1745881613180,6.754,148.03,147.99,6.7552]
[1745881613482,9.35153508,148.04,147.96,34.21153508]
[1745881614585,6.7539,148.03,147.96,34.21153508]
[1745881616287,6.7539,148.03,148.0,6.7549]
[1745881617394,6.7534,148.04,148.01,6.7546]
[1745881617892,6.7534,148.04,148.0,6.7548]
[1745881618790,6.7534,148.04,148.01,6.7545]
[1745881619589,6.7534,148.04,148.01,6.71464373]
[1745881620999,6.7534,148.04,148.0,6.7548]
[1745881621292,26.8104,148.05,147.96,34.21153508]
[1745881621485,36.16193508,148.05,147.96,34.21153508]
[1745881621684,36.16193508,148.05,148.0,6.7547]
[1745881623291,36.16193508,148.05,147.96,34.21153508]
[1745881623596,36.16193508,148.05,148.01,6.7545]
[1745881623785,42.91493508,148.05,147.96,34.21153508]
[1745881623985,36.16193508,148.05,147.97,1.9914]
[1745881624597,6.7539,148.03,147.99,6.7552]
[1745881624898,36.16193508,148.05,147.99,6.7552]
[1745881625199,9.35153508,148.01,147.96,24.86]
[1745881625696,6.7547,148.01,147.96,24.86]
[1745881625899,9.35153508,148.03,147.96,24.86]
[1745881626398,6.7544,148.02,147.98,6.7555]
[1745881626798,9.35153508,148.03,147.98,6.7555]
[1745881627200,6.7548,148.01,147.98,6.7555]
[1745881628800,6.7543,148.02,147.99,6.7555]
[1745881629000,9.35153508,148.03,147.96,24.86]
[1745881630004,6.7542,148.02,147.96,24.86]
[1745881630502,6.7542,148.02,147.98,6.7556]
[1745881630904,6.7537,148.03,147.96,34.21153508]
[1745881631099,3.9676,148.04,148.0,6.7546]
[1745881631501,8.684,148.04,148.01,6.7545]
[1745881631703,6.7535,148.04,148.01,6.7545]
[1745881632503,6.7537,148.03,148.0,6.7549]
[1745881633304,6.7541,148.02,147.99,6.7553]
[1745881635605,9.35153508,148.03,147.95,1.9362]
[1745881635909,9.35153508,148.01,147.94,24.84]
[1745881636105,6.7564,147.97,147.94,31.5974]
[1745881636304,6.7564,147.97,147.94,6.7574]
[1745881637209,6.7569,147.96,147.93,6.758]
[1745881638512,6.7573,147.95,147.93,6.758]
[1745881639412,6.757,147.96,147.93,6.758]
[1745881639717,9.35153508,147.99,147.92,8.7303]
[1745881640011,6.7578,147.94,147.91,24.84]
[1745881641309,6.7578,147.94,147.91,31.5989]
[1745881641511,9.35153508,147.97,147.91,24.84]
[1745881641715,34.21153508,147.97,147.89,2.0623]
[1745881642811,34.21153508,147.97,147.89,8.8221]
[1745881643210,34.21153508,147.97,147.89,2.0623]
[1745881643810,6.7577,147.95,147.91,6.7589]
[1745881646311,34.21153508,147.97,147.89,2.0623]
[1745881646511,24.86,147.97,147.9,9.35153508]
[1745881646707,9.35153508,147.99,147.9,9.35153508]
[1745881647013,6.7562,147.98,147.95,6.7569]
[1745881648912,6.7562,147.98,147.96,6.7568]
[1745881649114,6.7562,147.98,147.92,24.86]
[1745881649414,6.7564,147.97,147.92,24.86]
[1745881649609,9.35153508,147.99,147.92,24.86]
[1745881650016,6.7562,147.98,147.95,6.757]
[1745881652117,33.5921,148.0,147.97,6.7563]
[1745881652418,34.21153508,148.0,147.92,34.21153508]
[1745881652717,6.756,147.98,147.95,6.7572]
[1745881655920,9.35153508,147.98,147.92,24.86]
[1745881656418,6.7575,147.95,147.92,31.6184]
[1745881656617,6.7575,147.95,147.92,6.7584]
[1745881656819,9.35153508,147.96,147.89,26.9023]
[1745881657020,6.7581,147.94,147.91,6.7589]
[1745881657320,6.7581,147.94,147.89,26.9023]
[1745881657516,34.19153508,147.96,147.89,26.9023]
[1745881658315,6.7575,147.95,147.89,26.9023]
[1745881659019,6.7575,147.95,147.92,6.7586]
[1745881662323,24.84,147.96,147.89,26.9023]
[1745881662516,9.35153508,147.98,147.89,26.9023]
[1745881662822,6.7572,147.96,147.93,6.758]
[1745881663116,9.35153508,147.94,147.89,24.84]
[1745881663518,16.10953508,147.94,147.9,6.7591]
[1745881663919,16.10953508,147.94,147.89,24.84]
[1745881664119,16.10953508,147.94,147.91,6.759]
[1745881671828,6.7583,147.93,147.9,6.7594]
[1745881673227,16.10943508,147.94,147.91,6.759]
[1745881674828,6.7582,147.93,147.9,6.7594]
[1745881675130,24.84,147.95,147.89,24.84]
[1745881676233,6.758,147.94,147.91,6.7588]
[1745881677138,31.5975,147.95,147.92,6.7586]
[1745881678432,6.7575,147.95,147.92,6.7586]
[1745881680336,16.10853508,147.96,147.93,6.7581]
[1745881680531,6.757,147.96,147.89,24.84]
[1745881680829,6.757,147.96,147.93,6.7579]
[1745881681435,6.7573,147.95,147.93,6.7579]
[1745881682936,4.1318,147.97,147.89,24.84]
[1745881683138,9.35153508,147.96,147.89,24.84]
[1745881684038,6.7575,147.95,147.92,6.7586]
[1745881687541,5.9857574,147.94,147.92,6.7586]
[1745881688041,5.9857574,147.93,147.89,24.84]
[1745881688845,12.7442574,147.93,147.9,6.7596]
[1745881689041,5.9857574,147.93,147.89,24.84]
[1745881689237,6.7589,147.92,147.89,31.5998]
[1745881689541,9.35469223,147.95,147.89,24.84]
[1745881690040,6.7585,147.93,147.9,6.7593]
[1745881693743,9.35469223,147.95,147.92,6.7586]
[1745881693946,13.48649223,147.97,147.89,24.84]
[1745881694347,6.7574,147.95,147.92,6.7584]
[1745881695051,6.757,147.96,147.93,6.758]
[1745881698954,6.7573,147.95,147.92,6.7585]
[1745881699153,4.1318,147.97,147.89,24.84]
[1745881699856,6.757,147.96,147.89,24.84]
[1745881700156,4.1318,147.97,147.89,24.84]
[1745881700756,6.7573,147.95,147.89,24.84]
[1745881700951,4.1318,147.97,147.89,24.84]
[1745881701457,6.7576,147.95,147.92,6.7587]
[1745881701754,34.19469223,147.98,147.89,24.84]
[1745881701957,34.19469223,147.98,147.9,9.35469223]
[1745881702256,6.7566,147.97,147.94,6.7577]
[1745881707051,31.5961,147.98,147.92,9.35469223]
[1745881707257,24.82,148.01,147.92,9.35469223]
[1745881707456,24.82,148.01,147.93,24.82]
[1745881707657,24.82,148.01,147.96,6.7566]
[1745881707658,6.7555,147.99,147.96,6.7566]
[1745881708356,6.7555,147.99,147.97,6.7563]
[1745881709058,6.7555,147.99,147.96,6.7567]
[1745881711063,6.7559,147.98,147.96,6.7567]
[1745881714866,12.73757128,147.99,147.96,6.7567]
[1745881715166,5.98197128,147.97,147.93,24.82]
[1745881715460,12.73857128,147.97,147.93,30.80197128]
[1745881715763,12.73857128,147.97,147.93,31.5779]
[1745881717770,12.73857128,147.97,147.94,6.7578]
[1745881718369,12.73857128,147.97,147.93,31.578]
[1745881718570,5.98197128,147.95,147.93,24.82]
[1745881718769,5.98197128,147.94,147.88,32.76487128]
[1745881718972,5.98197128,147.93,147.89,6.7599]
[1745881719169,5.98197128,147.92,147.89,6.7599]
[1745881719670,6.7587,147.92,147.89,6.7599]
[1745881720072,6.759,147.92,147.88,31.5604]
[1745881720977,6.759,147.92,147.89,6.76]
[1745881721666,6.7592,147.91,147.88,31.5604]
[1745881721876,9.35494836,147.93,147.88,31.5604]
[1745881722169,9.35494836,147.93,147.88,24.8]
[1745881722672,9.35494836,147.95,147.88,24.8]
[1745881723968,9.35494836,147.95,147.9,6.7593]
[1745881724676,6.7582,147.94,147.9,6.7593]
[1745881725675,6.7583,147.93,147.9,6.7593]
[1745881727178,6.7579,147.94,147.9,6.7593]
[1745881728180,6.7583,147.93,147.9,6.7593]
[1745881728981,9.35494836,147.93,147.88,24.8]
[1745881729481,9.35494836,147.93,147.85,388.9469]
[1745881729674,6.7593,147.91,147.88,6.7604]
[1745881731074,9.35494836,147.93,147.85,28.9469]
[1745881731379,9.35494836,147.91,147.85,24.82]
[1745881731580,9.35494836,147.91,147.85,31.5816]
[1745881732776,6.7604,147.89,147.85,31.5816]
[1745881733276,6.7604,147.89,147.86,6.7614]
[1745881734180,6.7604,147.89,147.85,31.5817]
[1745881734480,6.7604,147.89,147.85,24.82]
[1745881735279,6.7604,147.89,147.86,6.7614]
[1745881738178,6.7597,147.9,147.86,6.7614]
[1745881741679,6.7601,147.89,147.86,6.7614]
[1745881741983,9.35494836,147.91,147.86,6.7614]
[1745881742483,6.7601,147.89,147.86,6.7614]
[1745881744486,6.7598,147.9,147.87,6.7609]
[1745881745487,5.98956877,147.89,147.87,6.7609]
[1745881746487,12.74966877,147.89,147.87,6.7609]
[1745881746688,12.74966877,147.89,147.86,6.7613]
[1745881749089,5.98956877,147.88,147.85,24.82]
[1745881750091,12.75026877,147.88,147.85,31.5818]
[1745881751592,12.75026877,147.88,147.85,6.7618]
[1745881751994,12.75026877,147.88,147.84,12.75166877]
[1745881752192,12.75026877,147.88,147.84,6.7621]
[1745881752787,5.98956877,147.87,147.84,6.7621]
[1745881753592,5.98956877,147.87,147.83,6.7626]
[1745881754595,6.7616,147.86,147.83,6.7626]
[1745881754790,5.98956877,147.86,147.83,6.7626]
[1745881754993,5.98956877,147.86,147.82,37.55246877]
[1745881755193,5.98956877,147.86,147.82,31.5629]
[1745881755395,5.98956877,147.86,147.82,37.55246877]
[1745881755697,12.75116877,147.86,147.82,37.55246877]
[1745881755895,12.75116877,147.86,147.83,6.7626]
[1745881756095,5.98956877,147.85,147.81,5.98956877]
[1745881756394,12.75176877,147.85,147.82,6.7632]
[1745881756999,12.75116877,147.86,147.82,6.7632]
[1745881757199,24.8,147.88,147.84,5.98956877]
[1745881757699,5.98956877,147.87,147.84,6.762]
[1745881758094,6.7603,147.89,147.84,5.98956877]
[1745881758295,5.98956877,147.91,147.87,6.7607]
[1745881758500,30.78956877,147.92,147.87,5.98956877]
[1745881758899,30.78956877,147.92,147.88,6.7602]
[1745881759100,30.78956877,147.92,147.87,5.98956877]
[1745881759299,5.98956877,147.91,147.89,6.7599]
[1745881760201,30.78956877,147.92,147.9,6.7596]
[1745881760601,24.8,147.92,147.88,5.98956877]
[1745881760802,24.8,147.92,147.89,6.7599]
[1745881763307,6.7584,147.93,147.89,6.7599]
[1745881763508,6.7584,147.93,147.86,9.35470273]
[1745881764610,6.7584,147.93,147.89,6.7597]
[1745881766510,34.15470273,147.95,147.9,6.7596]
[1745881766713,24.8,147.95,147.86,9.35470273]
[1745881767018,6.7585,147.93,147.86,9.35470273]
[1745881767218,9.35470273,147.92,147.85,6.1242]
[1745881767512,9.35470273,147.91,147.85,30.9242]
[1745881767712,9.35470273,147.91,147.87,6.7605]
[1745881767910,9.35470273,147.91,147.85,30.9242]
[1745881768112,6.7599,147.9,147.86,6.7613]
[1745881768515,9.35470273,147.93,147.85,30.9242]
[1745881769115,34.15470273,147.95,147.86,9.35470273]
[1745881769613,6.7584,147.93,147.9,6.7593]
[1745881772033,6.7579,147.94,147.9,6.7593]
[1745881772617,6.7585,147.93,147.9,6.7593]
[1745881774019,24.8,147.95,147.91,6.7589]
[1745881775322,6.7578,147.94,147.91,6.7589]
[1745881776827,31.5575,147.95,147.91,6.7589]
[1745881777124,24.8,147.95,147.91,6.7589]
[1745881777425,6.758,147.94,147.91,6.7589]
[1745881781424,34.13470273,147.98,147.89,24.78]
[1745881781625,9.35470273,147.98,147.89,24.78]
[1745881781828,9.35470273,147.98,147.91,6.7589]
[1745881782333,6.7576,147.95,147.91,6.7589]
[1745881783529,6.7578,147.94,147.91,6.7589]
[1745881784622,6.7578,147.94,147.9,6.7594]
[1745881784827,6.7584,147.93,147.9,6.7594]
[1745881785230,9.35470273,147.96,147.9,6.7594]
[1745881785730,6.758,147.94,147.9,6.7594]
[1745881786232,6.758,147.94,147.89,24.78]
[1745881786732,6.758,147.94,147.9,6.7592]
[1745881788037,6.758,147.94,147.89,24.78]
[1745881788038,6.758,147.94,147.91,6.7591]
[1745881788731,9.35470273,147.96,147.91,6.7591]
[1745881789036,6.7575,147.95,147.92,6.7586]
[1745881789436,6.7578,147.94,147.91,6.7589]
[1745881790535,6.7583,147.93,147.91,6.7589]
[1745881791433,9.35470273,147.96,147.89,24.78]
[1745881791630,5.98660286,147.93,147.89,24.78]
[1745881792036,5.98660286,147.93,147.9,6.7595]
[1745881793235,12.74510286,147.93,147.9,6.7595]
[1745881793538,6.7585,147.93,147.9,6.7595]
[1745881794338,6.7587,147.92,147.9,6.7595]
[1745881794536,6.7587,147.92,147.89,31.5398]
[1745881794838,6.7587,147.92,147.89,24.78]
[1745881795438,6.7592,147.91,147.86,34.13381686]
[1745881795630,9.35381686,147.94,147.86,24.78]
[1745881795835,9.35381686,147.94,147.86,31.5413]
[1745881796036,6.7595,147.91,147.86,24.78]
[1745881797242,6.7595,147.91,147.87,6.7609]
[1745881799651,26.8269,147.96,147.88,9.35381686]
[1745881800245,6.758,147.94,147.9,6.7592]
[1745881800546,26.8269,147.96,147.88,9.35381686]
[1745881800946,6.7585,147.93,147.89,6.7598]
[1745881801946,26.8269,147.96,147.88,9.35381686]
[1745881802345,26.8269,147.96,147.91,6.7591]
[1745881802346,6.7576,147.95,147.91,6.7591]
[1745881802742,26.8269,147.96,147.88,9.35381686]
[1745881803147,6.758,147.94,147.9,6.7594]
[1745881804746,6.7582,147.93,147.9,6.7594]
[1745881806247,6.7589,147.92,147.88,6.7602]
[1745881806546,6.7589,147.92,147.86,34.13381686]
[1745881807449,6.7589,147.92,147.89,6.76]
[1745881807951,6.7584,147.93,147.9,6.7595]
[1745881808350,9.35381686,147.95,147.86,34.13381686]
[1745881808745,6.7587,147.92,147.89,6.7598]
[1745881809954,6.7584,147.93,147.9,6.7596]
[1745881810149,36.18071686,147.96,147.88,9.35381686]
[1745881810350,9.35381686,147.94,147.86,34.13381686]
[1745881810549,6.7594,147.91,147.88,6.7604]
[1745881810750,9.35381686,147.94,147.86,24.78]
[1745881812948,6.7594,147.91,147.88,6.7602]
[1745881813453,6.7594,147.91,147.89,6.7599]
[1745881814552,6.7594,147.91,147.88,6.7603]
[1745881814852,6.7596,147.9,147.88,6.7603]
[1745881815154,9.35381686,147.94,147.88,6.7603]
[1745881815451,9.35381686,147.94,147.89,6.76]
[1745881815652,6.7593,147.91,147.86,34.13381686]
[1745881815852,6.7593,147.91,147.88,6.7602]
[1745881819552,6.7593,147.91,147.89,6.76]
[1745881819851,6.7588,147.92,147.89,6.76]
[1745881821653,6.7592,147.91,147.89,6.76]
[1745881822654,6.7596,147.9,147.88,6.7603]
[1745881822953,9.35381686,147.94,147.88,6.7603]
[1745881823853,6.7594,147.91,147.88,6.7603]
[1745881825059,6.7589,147.92,147.89,6.76]
[1745881828860,6.7605,147.88,147.86,31.5414]
[1745881829054,9.35381686,147.92,147.86,31.5414]
[1745881829253,9.35381686,147.92,147.86,24.78]
[1745881829760,6.7598,147.9,147.87,6.7609]
[1745881831157,6.7601,147.89,147.87,6.7609]
[1745881831658,6.7601,147.89,147.86,31.5412]
[1745881831860,6.7605,147.88,147.86,24.78]
[1745881833262,6.7605,147.88,147.86,31.5413]
[1745881833661,6.7602,147.89,147.86,31.5413]
[1745881834562,6.7606,147.88,147.86,31.5413]
[1745881834761,2.0123,147.91,147.86,24.78]
[1745881834964,9.35381686,147.9,147.83,24.78]
[1745881835764,6.7612,147.87,147.84,6.7621]
[1745881841169,6.7607,147.88,147.85,6.7618]
[1745881842871,6.761,147.87,147.85,6.7618]
[1745881843072,9.35381686,147.9,147.84,6.7621]
[1745881843368,9.35381686,147.88,147.83,24.78]
[1745881843867,9.35381686,147.86,147.83,24.78]
[1745881844068,9.35381686,147.86,147.79,28.911]
[1745881844768,6.7626,147.84,147.81,6.7636]
[1745881845868,9.35381686,147.86,147.81,6.7636]
[1745881846469,6.7625,147.84,147.81,6.7636]
[1745881849667,6.7625,147.84,147.82,6.7632]
[1745881852062,6.7625,147.84,147.81,6.7636]
[1745881852369,6.7632,147.83,147.79,24.76]
[1745881852775,6.7632,147.83,147.8,6.7638]
[1745881853574,9.35381686,147.86,147.8,6.7638]
[1745881854474,9.35381686,147.86,147.81,6.7636]
[1745881855271,6.7627,147.84,147.81,6.7636]
[1745881856780,6.7628,147.83,147.81,6.7636]
[1745881857174,6.7628,147.83,147.79,24.76]
[1745881857175,24.76,147.88,147.79,34.11381686]
[1745881857373,31.5208,147.88,147.81,9.35381686]
[1745881857577,30.75042763,147.88,147.84,5.99042763]
[1745881857773,12.75252763,147.85,147.81,5.99042763]
[1745881857987,5.99042763,147.84,147.79,30.75042763]
[1745881858568,12.75302763,147.84,147.81,6.7635]
[1745881859472,12.75302763,147.84,147.82,6.7632]
[1745881859688,12.75302763,147.84,147.79,30.75042763]
[1745881860170,12.75302763,147.84,147.81,6.7633]
[1745881860680,5.99042763,147.83,147.81,6.7633]
[1745881861877,5.99042763,147.82,147.76,511.36]
[1745881862080,5.99042763,147.82,147.77,5.99042763]
[1745881862681,5.99042763,147.82,147.79,6.7644]
[1745881863279,12.75382763,147.82,147.79,6.7644]
[1745881864883,6.7638,147.81,147.79,6.7644]
[1745881866683,6.7638,147.81,147.78,6.7649]
[1745881868985,6.7649,147.79,147.76,31.5259]
[1745881870285,6.7651,147.78,147.76,24.76]
[1745881870681,5.99042763,147.77,147.73,37.02482763]
[1745881870880,12.75632763,147.77,147.74,6.7666]
[1745881875286,6.766,147.76,147.73,31.5272]
[1745881875481,12.75642763,147.76,147.73,24.76]
[1745881875985,12.75642763,147.76,147.73,31.5272]
[1745881876585,12.75642763,147.76,147.73,6.7672]
[1745881878588,5.99042763,147.76,147.74,6.7668]
[1745881884496,12.75652763,147.76,147.74,6.7668]
[1745881884686,12.75652763,147.76,147.73,6.7672]
[1745881888900,5.99042763,147.77,147.73,5.99042763]
[1745881889102,12.75582763,147.78,147.73,5.99042763]
[1745881889598,12.75582763,147.78,147.74,6.7665]
[1745881889994,12.75582763,147.78,147.73,5.99042763]
[1745881891296,12.75582763,147.78,147.75,6.7664]
[1745881894200,5.99042763,147.77,147.75,6.7664]
[1745881897203,12.75602763,147.77,147.75,6.7664]
[1745881900309,12.75602763,147.77,147.74,6.7667]
[1745881907018,12.75602763,147.77,147.75,6.7664]
[1745881907616,12.75602763,147.77,147.74,6.7665]
[1745881907819,12.75602763,147.77,147.72,5.99042763]
[1745881909920,12.75602763,147.77,147.75,6.7663]
[1745881910121,5.99042763,147.77,147.75,6.7663]
[1745881911417,5.99042763,147.77,147.74,6.7667]
[1745881911624,12.75722763,147.75,147.7,30.75042763]
[1745881912221,12.75722763,147.75,147.72,6.7674]
[1745881912823,12.75722763,147.75,147.73,6.7673]
[1745881914823,5.99042763,147.74,147.73,6.7673]
[1745881918524,5.99042763,147.74,147.7,30.75042763]
[1745881918827,5.99042763,147.74,147.72,6.7676]
[1745881919928,12.75732763,147.74,147.72,6.7676]
[1745881921225,5.99042763,147.74,147.72,6.7676]
[1745881921929,12.75732763,147.74,147.72,6.7676]
[1745881922328,12.75732763,147.74,147.71,6.7681]
[1745881923129,12.75732763,147.74,147.72,6.7678]
[1745881925332,5.99042763,147.74,147.72,6.7678]
[1745881925527,12.75712763,147.75,147.72,6.7678]
[1745881927332,6.7667,147.75,147.72,6.7678]
[1745881927630,12.75712763,147.75,147.72,6.7678]
[1745881932536,6.7669,147.74,147.71,12.75852763]
[1745881932737,6.7669,147.74,147.71,6.7681]
[1745881933635,6.7669,147.74,147.7,30.75042763]
[1745881933636,12.75782763,147.73,147.7,31.5285]
[1745881934537,5.99042763,147.73,147.71,6.7683]
[1745881934933,12.75752763,147.74,147.71,6.7683]
[1745881939340,6.7675,147.73,147.7,37.51902763]
[1745881940040,6.7675,147.73,147.7,31.5286]
[1745881944342,6.7675,147.73,147.71,6.7681]
[1745881945844,12.75752763,147.74,147.71,6.7681]
[1745881948442,12.75702763,147.75,147.72,6.7677]
[1745881948644,2.0297,147.76,147.71,5.99042763]
[1745881948645,5.99042763,147.76,147.71,5.99042763]
[1745881949146,6.7666,147.75,147.72,6.7675]
[1745881949343,6.7666,147.75,147.71,5.99042763]
[1745881949645,6.7666,147.75,147.72,6.7675]
[1745881956449,12.75702763,147.75,147.72,6.7675]
[1745881957547,6.7669,147.74,147.72,6.7675]
[1745881962450,6.7669,147.74,147.71,6.7681]
[1745881967053,6.7669,147.74,147.72,6.7678]
[1745881969253,6.7669,147.74,147.71,6.7681]
[1745881974256,6.7669,147.74,147.72,6.7677]
[1745881974557,6.7669,147.74,147.7,5.99042763]
[1745881974858,6.7669,147.74,147.71,6.7681]
[1745881976757,6.7676,147.73,147.7,12.75902763]
[1745881976959,12.75802763,147.73,147.7,12.75902763]
[1745881977163,5.99042763,147.73,147.7,12.75902763]
[1745881977353,5.99042763,147.71,147.66,24.72]
[1745881977556,24.72,147.74,147.68,5.99042763]
[1745881977557,5.99042763,147.73,147.68,5.99042763]
[1745881977860,6.768,147.72,147.69,6.769]
[1745881978061,12.75842763,147.72,147.69,6.769]
[1745881978658,6.7683,147.71,147.69,6.769]
[1745881980563,12.75842763,147.72,147.69,6.769]
[1745881981762,6.7683,147.71,147.69,6.769]
[1745881981958,24.72,147.74,147.7,6.7687]
[1745881982162,5.99042763,147.73,147.7,6.7687]
[1745881982461,5.99042763,147.73,147.69,12.75942763]
[1745881983466,6.7678,147.72,147.69,12.75942763]
[1745881985964,12.75822763,147.72,147.69,6.769]
[1745881989665,12.75822763,147.72,147.7,6.7687]
[1745881989862,5.99042763,147.72,147.7,6.7687]
[1745881990164,12.75802763,147.73,147.7,6.7687]
[1745881990363,12.75802763,147.73,147.71,6.7683]
[1745881990756,12.75802763,147.73,147.69,5.99042763]
[1745881990957,6.7679,147.72,147.7,6.7685]
[1745881994570,6.7679,147.72,147.69,6.769]
[1745881994966,6.7679,147.72,147.68,5.99042763]
[1745881995272,6.7679,147.72,147.69,6.7691]
[1745881996771,6.7679,147.72,147.7,6.7687]
[1745881997169,6.7679,147.72,147.66,24.72]
[1745881997363,5.99042763,147.73,147.67,5.99042763]
[1745881998871,6.768,147.72,147.69,6.7688]
[1745881999771,6.768,147.72,147.7,6.7687]
[1745882003777,6.768,147.72,147.69,6.769]
[1745882005476,12.75792763,147.73,147.7,6.7684]
[1745882006577,5.99042763,147.73,147.69,6.769]
[1745882006879,5.99042763,147.71,147.67,5.99042763]
[1745882008284,6.7688,147.7,147.68,6.7695]
[1745882011691,6.7688,147.7,147.67,5.99042763]
[1745882011692,12.75892763,147.71,147.69,6.7692]
[1745882012791,12.75892763,147.71,147.67,5.99042763]
[1745882013091,12.75892763,147.71,147.68,6.7694]
[1745882014991,6.7685,147.71,147.68,6.7694]
[1745882015192,6.7685,147.71,147.68,5.99042763]
[1745882015792,6.7685,147.71,147.68,6.7694]
[1745882016792,6.7687,147.7,147.68,6.7694]
[1745882017290,6.7687,147.7,147.67,12.76032763]
[1745882021897,6.7692,147.69,147.66,37.48092763]
[1745882022893,6.7692,147.69,147.66,31.4905]
[1745882024792,6.7692,147.69,147.66,6.7705]
[1745882025894,6.7692,147.69,147.67,6.7701]
[1745882029798,12.75942763,147.7,147.68,6.7695]
[1745882029999,6.769,147.7,147.68,6.7695]
[1745882030200,6.769,147.7,147.67,5.99042763]
[1745882030394,6.769,147.7,147.67,12.76022763]
[1745882032395,13.5309,147.78,147.63,26.6274]
[1745882032396,487.16,147.81,147.68,30.67042763]
[1745882032601,5.99042763,147.78,147.73,5.99042763]
[1745882032792,5.99042763,147.78,147.74,5.99042763]
[1745882032995,6.7658,147.77,147.73,12.75752763]
[1745882033195,6.7658,147.77,147.73,5.99042763]
[1745882033402,5.99042763,147.77,147.74,6.7667]
[1745882034200,5.99042763,147.77,147.75,6.7664]
[1745882034502,12.75612763,147.77,147.73,5.99042763]
[1745882035000,12.75612763,147.77,147.74,6.7666]
[1745882035701,5.99042763,147.77,147.74,6.7666]
[1745882037803,12.75612763,147.77,147.74,6.7666]
[1745882041006,12.75682763,147.76,147.73,6.7672]
[1745882041206,5.99042763,147.76,147.73,6.7672]
[1745882041606,12.75672763,147.76,147.73,6.7672]
[1745882041811,5.99042763,147.76,147.73,6.7672]
[1745882042310,12.75652763,147.76,147.73,6.7672]
[1745882048310,6.7661,147.76,147.73,6.7672]
[1745882048510,5.99042763,147.78,147.73,5.99042763]
[1745882049707,12.75582763,147.78,147.75,6.7664]
[1745882050118,6.7648,147.79,147.76,6.7659]
[1745882051113,6.7648,147.79,147.75,12.75662763]
[1745882051416,6.7652,147.78,147.75,12.75662763]
[1745882055317,6.7652,147.78,147.76,6.7659]
[1745882056020,6.7652,147.78,147.75,12.75672763]
[1745882057714,6.7652,147.78,147.75,6.7663]
[1745882057918,6.7652,147.78,147.76,12.75632763]
[1745882058118,6.7652,147.78,147.76,6.7659]
[1745882058618,6.7648,147.79,147.76,6.7659]
[1745882063321,6.7648,147.79,147.77,6.7654]
[1745882063915,39.57152763,147.8,147.77,6.7654]
[1745882065422,6.7639,147.81,147.78,6.765]
[1745882066623,6.7639,147.81,147.78,12.75542763]